[Event "FIDE Grand Swiss 2023"]
[Site "Villa Marina, Douglas, Isle of Man"]
[Date "2023.11.01"]
[Round "7.41"]
[White "Amin, Bassem"]
[Black "Vokhidov, Shamsiddin"]
[Result "1/2-1/2"]
[WhiteElo "2680"]
[BlackElo "2578"]
[EventDate "2023.10.25"]
[ECO "A05"]
[PlyCount "63"]
[BlackClock "00:06:22"]
[BlackFideId "14204223"]
[TimeControl "40/100 + 20/50 + 15 + 30s/move"]
[WhiteClock "00:24:12"]
[WhiteFideId "10601457"]

1.Nf3 {[%clk 01:40:10][%emt 00:00:48]} 1...c5 {[%clk 01:40:49][%emt 00:00:12]} 
2.g3 {[%clk 01:38:38][%emt 00:02:03]} 2...Nc6 {[%clk 01:41:07][%emt 00:00:12]} 
3.c4 {[%clk 01:38:41][%emt 00:00:28]} 3...Nf6 {[%clk 01:40:48][%emt 00:00:48]} 
4.Bg2 {[%clk 01:38:47][%emt 00:00:24]} 4...d5 {[%clk 01:40:48][%emt 00:00:30]} 
5.cxd5 {[%clk 01:39:02][%emt 00:00:15]} 5...Nxd5 {[%clk 01:41:13][%emt
00:00:05]} 6.Nc3 {[%clk 01:39:24][%emt 00:00:07]} 6...Nc7 {[%clk 01:40:45][%emt
00:00:59]} 7.a3 {[%clk 01:39:25][%emt 00:00:30]} 7...g6 {[%clk 01:37:31][%emt
00:03:43]} 8.h4 {[%clk 01:29:55][%emt 00:10:00]} 8...h6 {[%clk 01:35:35][%emt
00:02:26]} 9.b4 {[%clk 01:17:21][%emt 00:13:05]} 9...cxb4 {[%clk 01:32:00][%emt
00:04:04]} 10.axb4 {[%clk 01:17:43][%emt 00:00:08]} 10...Bg7 {[%clk
01:31:07][%emt 00:01:22]} 11.Ba3 {[%clk 01:11:11][%emt 00:07:04]} 11...a6 
{[%clk 01:28:54][%emt 00:02:43]} 12.O-O {[%clk 01:10:07][%emt 00:01:32]} 
12...O-O {[%clk 01:25:45][%emt 00:03:39]} 13.Rc1 {[%clk 01:03:16][%emt
00:07:21]} 13...Nb5 {[%clk 01:17:30][%emt 00:08:46]} 14.Bb2 {[%clk
01:02:49][%emt 00:00:57]} 14...Nd6 {[%clk 01:09:33][%emt 00:08:27]} 15.Na4 
{[%clk 00:58:41][%emt 00:04:38]} 15...Bxb2 {[%clk 01:03:34][%emt 00:06:28]} 
16.Nxb2 {[%clk 00:57:33][%emt 00:01:39]} 16...Nxb4 {[%clk 01:02:24][%emt
00:01:39]} 17.Ne5 {[%clk 00:57:51][%emt 00:00:13]} 17...Be6 {[%clk
00:57:00][%emt 00:05:54]} 18.d4 {[%clk 00:58:01][%emt 00:00:20]} 18...Bd5 
{[%clk 00:48:37][%emt 00:08:54]} 19.Qd2 {[%clk 00:51:26][%emt 00:07:05]} 
19...Bxg2 {[%clk 00:49:00][%emt 00:00:06]} 20.Kxg2 {[%clk 00:51:50][%emt
00:00:06]} 20...a5 {[%clk 00:48:54][%emt 00:00:36]} 21.Rfd1 {[%clk
00:30:34][%emt 00:21:46]} 21...Kg7 {[%clk 00:48:16][%emt 00:01:08]} 22.d5 
{[%clk 00:29:28][%emt 00:01:36]} 22...Rc8 {[%clk 00:45:00][%emt 00:03:46]} 
23.Nbc4 {[%clk 00:26:18][%emt 00:03:40]} 23...Nxc4 {[%clk 00:33:48][%emt
00:11:42]} 24.Nxc4 {[%clk 00:25:59][%emt 00:00:49]} 24...b5 {[%clk
00:31:23][%emt 00:02:55]} 25.Nxa5 {[%clk 00:23:00][%emt 00:03:29]} 25...Rxc1 
{[%clk 00:31:38][%emt 00:00:15]} 26.Qxc1 {[%clk 00:23:02][%emt 00:00:27]} 
26...Qxa5 {[%clk 00:32:01][%emt 00:00:08]} 27.Qc3+ {[%clk 00:23:20][%emt
00:00:11]} 27...Kg8 {[%clk 00:18:04][%emt 00:14:27]} 28.Rd4 {[%clk
00:23:15][%emt 00:00:35]} 28...Qa2 {[%clk 00:18:02][%emt 00:00:32]} 29.Qxb4 
{[%clk 00:23:36][%emt 00:00:09]} 29...Qxe2 {[%clk 00:18:30] [%emt 00:00:03]} 
30.Re4 {[%clk 00:23:54] [%emt 00:00:13]} 30...Qd3 {[%clk 00:06:28] [%emt
00:12:32]} 31.Rd4 {[%clk 00:23:48] [%emt 00:00:35]} 31...Qe2 {[%clk
00:18:30][%emt 00:00:03]} 32.Re4 {[%clk 00:23:54][%emt 00:00:13]} 1/2-1/2

[Event "FIDE Grand Swiss 2023"]
[Site "Villa Marina, Douglas, Isle of Man"]
[Date "2023.11.01"]
[Round "7.42"]
[White "Wagner, Dennis"]
[Black "Matlakov, Maxim"]
[Result "0-1"]
[WhiteElo "2589"]
[BlackElo "2674"]
[EventDate "2023.10.25"]
[ECO "A46"]
[PlyCount "70"]
[BlackClock "00:02:40"]
[BlackFideId "4168003"]
[TimeControl "40/100 + 20/50 + 15 + 30s/move"]
[WhiteClock "00:01:55"]
[WhiteFideId "24650684"]

1.d4 {[%clk 01:40:54][%emt 00:00:04]} 1...Nf6 {[%clk 01:40:48][%emt 00:00:13]} 
2.Nf3 {[%clk 01:41:02][%emt 00:00:21]} 2...e6 {[%clk 01:40:53][%emt 00:00:26]} 
3.g3 {[%clk 01:41:03][%emt 00:00:29]} 3...c5 {[%clk 01:37:32][%emt 00:03:51]} 
4.Bg2 {[%clk 01:41:01][%emt 00:00:32]} 4...cxd4 {[%clk 01:37:35][%emt 00:00:28]} 
5.O-O {[%clk 01:40:35][%emt 00:00:55]} 5...d5 {[%clk 01:37:46][%emt 00:00:19]} 
6.Nxd4 {[%clk 01:40:56][%emt 00:00:10]} 6...e5 {[%clk 01:37:58][%emt 00:00:17]} 
7.Nb3 {[%clk 01:41:09][%emt 00:00:17]} 7...Nc6 {[%clk 01:27:38][%emt 00:10:50]} 
8.c4 {[%clk 01:38:55][%emt 00:02:44]} 8...d4 {[%clk 01:27:30][%emt 00:00:39]} 
9.f4 {[%clk 01:19:52][%emt 00:19:33]} 9...e4 {[%clk 01:27:06][%emt 00:00:54]} 
10.f5 {[%clk 01:20:15][%emt 00:00:07]} 10...Be7 {[%clk 01:20:18][%emt 00:07:18]} 
11.Bg5 {[%clk 00:48:19][%emt 00:32:25]} 11...Ng4 {[%clk 01:07:27][%emt
00:13:21]} 12.Bc1 {[%clk 00:45:41][%emt 00:03:08]} 12...Bd6 {[%clk
00:30:24][%emt 00:37:33]} 13.Nxd4 {[%clk 00:30:32][%emt 00:15:39]} 13...O-O 
{[%clk 00:23:13][%emt 00:07:41]} 14.Nc3 {[%clk 00:24:18][%emt 00:06:43]} 
14...Bc5 {[%clk 00:16:07][%emt 00:07:36]} 15.e3 {[%clk 00:24:42][%emt 00:00:07]} 
15...Nxd4 {[%clk 00:16:08][%emt 00:00:30]} 16.Qxg4 {[%clk 00:17:24][%emt
00:07:47]} 16...Nc2 {[%clk 00:15:37][%emt 00:01:02]} 17.Nxe4 {[%clk
00:16:48][%emt 00:01:05]} 17...Bxe3+ {[%clk 00:13:59][%emt 00:02:08]} 18.Kh1 
{[%clk 00:16:52][%emt 00:00:26]} 18...Bxc1 {[%clk 00:12:33][%emt 00:01:55]} 
19.Raxc1 {[%clk 00:17:17][%emt 00:00:06]} 19...Ne3 {[%clk 00:11:56][%emt
00:01:06]} 20.Qf4 {[%clk 00:17:15][%emt 00:00:33]} 20...Nxf1 {[%clk
00:10:06][%emt 00:02:21]} 21.Rxf1 {[%clk 00:15:43][%emt 00:02:01]} 21...Qd4 
{[%clk 00:08:21][%emt 00:02:15]} 22.f6 {[%clk 00:01:40][%emt 00:14:33]} 22...h6 
{[%clk 00:08:40][%emt 00:00:11]} 23.fxg7 {[%clk 00:01:01][%emt 00:01:10]} 
23...Kxg7 {[%clk 00:07:21][%emt 00:01:48]} 24.Qc7 {[%clk 00:00:54][%emt
00:00:37]} 24...Be6 {[%clk 00:05:25][%emt 00:02:26]} 25.b3 {[%clk 00:01:16][%emt
00:00:09]} 25...Rad8 {[%clk 00:02:04][%emt 00:03:51]} 26.Nf6 {[%clk
00:01:21][%emt 00:00:24]} 26...b6 {[%clk 00:01:45][%emt 00:00:49]} 27.Qxa7 
{[%clk 00:01:33][%emt 00:00:18]} 27...Qe5 {[%clk 00:01:23][%emt 00:00:50]} 
28.Qxb6 {[%clk 00:00:56][%emt 00:01:10]} 28...Rd2 {[%clk 00:01:51]} 29.Qb4 
{[%clk 00:00:48][%emt 00:00:38]} 29...Rfd8 {[%clk 00:01:30][%emt 00:00:52]} 
30.Qe7 {[%clk 00:00:43][%emt 00:00:34]} 30...Qe2 {[%clk 00:01:22][%emt
00:00:37]} 31.Rg1 {[%clk 00:00:45][%emt 00:00:29]} 31...Rd1 {[%clk
00:01:14][%emt 00:00:38]} 32.Ne8+ {[%clk 00:00:50][%emt 00:00:25]} 32...Rxe8 
{[%clk 00:01:29][%emt 00:00:15]} 33.Qxe8 {[%clk 00:01:12][%emt 00:00:08]} 
33...Rxg1+ {[%clk 00:01:51] [%emt 00:00:07]} 34.Kxg1 {[%clk 00:01:39] [%emt
00:00:04]} 34...Qe3+ {[%clk 00:02:17] [%emt 00:00:04]} 35.Kf1 {[%clk 00:02:01]
[%emt 00:00:07]} 35...Bxc4+ {[%clk 00:02:40] [%emt 00:00:09]} 0-1

[Event "FIDE Grand Swiss 2023"]
[Site "Villa Marina, Douglas, Isle of Man"]
[Date "2023.11.01"]
[Round "7.43"]
[White "Dardha, Daniel"]
[Black "Volokitin, Andrei"]
[Result "0-1"]
[WhiteElo "2580"]
[BlackElo "2664"]
[EventDate "2023.10.25"]
[ECO "E11"]
[PlyCount "82"]
[BlackClock "00:25:15"]
[BlackFideId "14107090"]
[TimeControl "40/100 + 20/50 + 15 + 30s/move"]
[WhiteClock "00:02:29"]
[WhiteFideId "240990"]

1.d4 {[%clk 01:40:57][%emt 00:00:02]} 1...Nf6 {[%clk 01:40:53][%emt 00:00:07]} 
2.c4 {[%clk 01:41:20][%emt 00:00:07]} 2...e6 {[%clk 01:41:14][%emt 00:00:09]} 
3.g3 {[%clk 01:41:42][%emt 00:00:09]} 3...d5 {[%clk 01:41:30][%emt 00:00:14]} 
4.Bg2 {[%clk 01:42:07][%emt 00:00:04]} 4...Bb4+ {[%clk 01:41:44][%emt 00:00:16]} 
5.Bd2 {[%clk 01:41:28][%emt 00:01:09]} 5...Be7 {[%clk 01:42:08][%emt 00:00:06]} 
6.Nf3 {[%clk 01:41:47][%emt 00:00:11]} 6...O-O {[%clk 01:42:29][%emt 00:00:08]} 
7.O-O {[%clk 01:42:03][%emt 00:00:14]} 7...c6 {[%clk 01:42:54][%emt 00:00:05]} 
8.Qc2 {[%clk 01:42:09][%emt 00:00:25]} 8...Nbd7 {[%emt 00:01:15]} 9.Bf4 {[%clk
01:41:37]} 9...b6 {[%clk 01:43:17][%emt 00:00:24]} 10.Rd1 {[%clk 01:41:13][%emt
00:00:54]} 10...Ba6 {[%clk 01:43:24][%emt 00:00:22]} 11.cxd5 {[%clk
01:39:29][%emt 00:02:15]} 11...cxd5 {[%clk 01:43:46][%emt 00:00:08]} 12.Ne5 
{[%clk 01:39:41][%emt 00:00:17]} 12...Nxe5 {[%clk 01:43:39][%emt 00:00:38]} 
13.dxe5 {[%clk 01:40:05][%emt 00:00:07]} 13...Ng4 {[%clk 01:44:03][%emt
00:00:04]} 14.h3 {[%clk 01:23:57][%emt 00:16:39]} 14...Rc8 {[%clk 01:42:54][%emt
00:01:39]} 15.Nc3 {[%clk 01:19:54][%emt 00:04:33]} 15...Nxf2 {[%clk
01:42:44][%emt 00:00:40]} 16.Kxf2 {[%clk 01:20:22][%emt 00:00:02]} 16...Bc5+ 
{[%clk 01:43:08][%emt 00:00:07]} 17.Be3 {[%clk 01:20:33][%emt 00:00:18]} 
17...Bxe3+ {[%clk 01:43:16][%emt 00:00:22]} 18.Kxe3 {[%clk 01:20:58][%emt
00:00:04]} 18...b5 {[%clk 01:43:41][%emt 00:00:06]} 19.Qd2 {[%clk 01:19:50][%emt
00:01:38]} 19...Qb6+ {[%clk 01:43:47][%emt 00:00:24]} 20.Qd4 {[%clk
01:20:15][%emt 00:00:04]} 20...Qb8 {[%clk 01:44:12][%emt 00:00:05]} 21.Kf2 
{[%clk 01:15:56][%emt 00:04:49]} 21...b4 {[%clk 01:42:21][%emt 00:02:22]} 
22.Na4 {[%clk 01:08:19][%emt 00:08:07]} 22...Qb5 {[%clk 01:37:15][%emt
00:05:36]} 23.Rd2 {[%clk 00:54:19][%emt 00:14:30]} 23...Qxa4 {[%clk
01:35:02][%emt 00:02:43]} 24.Qxa7 {[%clk 00:54:10][%emt 00:00:40]} 24...b3 
{[%clk 01:12:35][%emt 00:22:56]} 25.Qe3 {[%clk 00:41:50][%emt 00:12:49]} 
25...Qa5 {[%clk 01:02:59][%emt 00:10:06]} 26.a3 {[%clk 00:28:23][%emt 00:13:58]} 
26...Rc2 {[%clk 00:59:29][%emt 00:03:59]} 27.Rxc2 {[%clk 00:23:42][%emt
00:05:12]} 27...bxc2 {[%clk 00:59:54][%emt 00:00:05]} 28.Rc1 {[%clk
00:24:06][%emt 00:00:06]} 28...Rc8 {[%clk 00:59:58][%emt 00:00:26]} 29.Bf3 
{[%clk 00:23:04][%emt 00:01:31]} 29...h6 {[%clk 00:52:05][%emt 00:08:24]} 30.g4 
{[%clk 00:22:09][%emt 00:01:25]} 30...Bb5 {[%clk 00:33:15][%emt 00:19:19]} 
31.g5 {[%clk 00:19:21][%emt 00:03:19]} 31...hxg5 {[%clk 00:32:57][%emt
00:00:48]} 32.Qxg5 {[%clk 00:17:55][%emt 00:01:56]} 32...Qb6+ {[%clk
00:30:33][%emt 00:02:53]} 33.Kg2 {[%clk 00:16:18][%emt 00:02:08]} 33...Ba4 
{[%clk 00:30:30][%emt 00:00:33]} 34.Bh5 {[%clk 00:11:12][%emt 00:05:36]} 
34...Qxb2 {[%clk 00:28:50][%emt 00:02:10]} 35.Rf1 {[%clk 00:07:31][%emt
00:04:10]} 35...c1=Q {[%clk 00:28:06][%emt 00:01:15]} 36.Bxf7+ {[%clk
00:07:50][%emt 00:00:11]} 36...Kh8 {[%clk 00:28:31][%emt 00:00:05]} 37.Rxc1 
{[%clk 00:07:23][%emt 00:00:57]} 37...Qxc1 {[%clk 00:28:40][%emt 00:00:20]} 
38.Qh4+ {[%clk 00:07:40][%emt 00:00:13]} 38...Qh6 {[%clk 00:29:01][%emt
00:00:09]} 39.Qxa4 {[%clk 00:08:02][%emt 00:00:09]} 39...Rf8 {[%clk
00:26:29][%emt 00:03:02]} 40.Qc6 {[%clk 00:02:29][%emt 00:06:03]} 40...Qg5+ 
{[%clk 00:25:33][%emt 00:01:26]} 41.Kh1 {[%clk 00:02:52][%emt 00:00:05]} 
41...Qf5 {[%clk 00:25:15][%emt 00:00:49]} 0-1

[Event "FIDE Grand Swiss 2023"]
[Site "Villa Marina, Douglas, Isle of Man"]
[Date "2023.11.01"]
[Round "7.44"]
[White "Ivanchuk, Vasyl"]
[Black "Karthikeyan, Murali"]
[Result "1/2-1/2"]
[WhiteElo "2653"]
[BlackElo "2611"]
[EventDate "2023.10.25"]
[ECO "A20"]
[PlyCount "74"]
[BlackFideId "5074452"]
[TimeControl "40/100 + 20/50 + 15 + 30s/move"]
[WhiteFideId "14100010"]

1.c4 {[%clk 01:40:58][%emt 00:00:01]} 1...e5 {[%clk 01:40:15][%emt 00:00:45]} 
2.g3 {[%clk 01:41:22][%emt 00:00:06]} 2...Nc6 {[%clk 01:38:57][%emt 00:01:48]} 
3.Nc3 {[%clk 01:41:21][%emt 00:00:32]} 3...f5 {[%clk 01:38:54][%emt 00:00:32]} 
4.Nf3 {[%clk 01:41:27][%emt 00:00:25]} 4...Nf6 {[%clk 01:38:44][%emt 00:00:39]} 
5.d4 {[%clk 01:40:41][%emt 00:01:16]} 5...e4 {[%clk 01:39:07][%emt 00:00:07]} 
6.Nh4 {[%clk 01:41:08][%emt 00:00:03]} 6...d5 {[%clk 01:38:35][%emt 00:01:02]} 
7.Bg5 {[%clk 01:41:33][%emt 00:00:05]} 7...Bb4 {[%clk 01:38:45][%emt 00:00:20]} 
8.e3 {[%clk 01:40:59][%emt 00:01:05]} 8...O-O {[%clk 01:38:03][%emt 00:01:11]} 
9.Rc1 {[%clk 01:39:00][%emt 00:02:29]} 9...Be6 {[%clk 01:33:59][%emt 00:04:33]} 
10.cxd5 {[%clk 01:38:11][%emt 00:01:20]} 10...Qxd5 {[%clk 01:28:52][%emt
00:05:37]} 11.a3 {[%clk 01:38:31][%emt 00:00:10]} 11...Bxc3+ {[%clk
01:29:15][%emt 00:00:07]} 12.Rxc3 {[%clk 01:38:58][%emt 00:00:03]} 12...Qd6 
{[%clk 01:24:16][%emt 00:05:29]} 13.Bxf6 {[%clk 01:39:00][%emt 00:00:29]} 
13...Rxf6 {[%clk 01:24:39][%emt 00:00:07]} 14.Ng2 {[%clk 01:39:27][%emt
00:00:02]} 14...Ne7 {[%clk 01:21:43][%emt 00:03:26]} 15.Nf4 {[%clk
01:39:49][%emt 00:00:08]} 15...Nd5 {[%clk 01:04:09][%emt 00:18:05]} 16.Nxd5 
{[%clk 01:39:53][%emt 00:00:26]} 16...Bxd5 {[%clk 01:04:36][%emt 00:00:03]} 
17.Bc4 {[%clk 01:40:10][%emt 00:00:11]} 17...c6 {[%clk 01:04:32][%emt 00:00:35]} 
18.Qb3 {[%clk 01:36:29][%emt 00:04:09]} 18...Qd7 {[%clk 00:46:39][%emt
00:18:25]} 19.Bxd5+ {[%clk 01:22:23][%emt 00:14:37]} 19...cxd5 {[%clk
00:46:53][%emt 00:00:15]} 20.Kd2 {[%clk 01:22:51][%emt 00:00:02]} 20...Rb6 
{[%clk 00:39:27][%emt 00:07:56]} 21.Qc2 {[%clk 01:22:16][%emt 00:01:04]} 
21...Rf8 {[%clk 00:38:34][%emt 00:01:24]} 22.Rc1 {[%clk 01:16:50]} 22...g5 
{[%clk 00:35:19][%emt 00:03:44]} 23.Rc7 {[%clk 01:13:04][%emt 00:04:16]} 
23...Qd6 {[%clk 00:28:10][%emt 00:07:40]} 24.b4 {[%clk 00:36:00][%emt 00:37:34]} 
24...f4 {[%clk 00:25:26][%emt 00:03:14]} 25.Ke1 {[%clk 00:36:24][%emt 00:00:06]} 
25...fxe3 {[%clk 00:23:44][%emt 00:02:12]} 26.fxe3 {[%clk 00:36:33][%emt
00:00:21]} 26...Qf6 {[%clk 00:22:52][%emt 00:01:22]} 27.Qe2 {[%clk
00:37:01][%emt 00:00:02]} 27...Qf5 {[%clk 00:18:54][%emt 00:04:29]} 28.g4 
{[%clk 00:35:00][%emt 00:02:31]} 28...Qf3 {[%clk 00:13:45][%emt 00:05:39]} 
29.Rc8 {[%clk 00:33:38][%emt 00:01:52]} 29...Qxe2+ {[%clk 00:07:38][%emt
00:06:36]} 30.Kxe2 {[%clk 00:34:03][%emt 00:00:05]} 30...Rh6 {[%clk
00:07:41][%emt 00:00:27]} 31.Rxf8+ {[%clk 00:33:36][%emt 00:00:58]} 31...Kxf8 
{[%clk 00:08:10][%emt 00:00:01]} 32.Rc8+ {[%clk 00:34:05][%emt 00:00:01]} 
32...Ke7 {[%clk 00:08:28][%emt 00:00:11]} 33.Rc7+ {[%clk 00:34:12][%emt
00:00:23]} 33...Kd6 {[%clk 00:07:27][%emt 00:01:31]} 34.Rxb7 {[%clk
00:34:38][%emt 00:00:04]} 34...Rxh2+ {[%clk 00:07:52] [%emt 00:00:06]} 35.Kf1 
{[%clk 00:35:06] [%emt 00:00:02]} 35...Rh3 {[%clk 00:07:29] [%emt 00:00:53]} 
36.Ke2 {[%clk 00:02:31][%emt 00:33:05]} 36...Rh2+ {[%clk 00:07:52][%emt
00:00:06]} 37.Kf1 {[%clk 00:35:06][%emt 00:00:02]} 37...Rh3 {[%clk
00:07:29][%emt 00:00:53]} 1/2-1/2

[Event "FIDE Grand Swiss 2023"]
[Site "Villa Marina, Douglas, Isle of Man"]
[Date "2023.11.01"]
[Round "7.45"]
[White "Maurizzi, Marc`andria"]
[Black "Santos Latasa, Jaime"]
[Result "1-0"]
[WhiteElo "2555"]
[BlackElo "2650"]
[EventDate "2023.10.25"]
[ECO "A05"]
[PlyCount "125"]
[BlackClock "00:51:46"]
[BlackFideId "2293307"]
[TimeControl "40/100 + 20/50 + 15 + 30s/move"]
[WhiteClock "00:23:54"]
[WhiteFideId "36083534"]

1.Nf3 {[%clk 01:40:45][%emt 00:00:14]} 1...Nf6 {[%clk 01:39:24][%emt 00:01:37]} 
2.g3 {[%clk 01:38:57][%emt 00:02:17]} 2...c5 {[%clk 01:37:54][%emt 00:02:00]} 
3.Bg2 {[%clk 01:38:00][%emt 00:01:27]} 3...Nc6 {[%clk 01:38:14][%emt 00:00:11]} 
4.O-O {[%clk 01:35:14][%emt 00:03:14]} 4...e5 {[%clk 01:34:38][%emt 00:04:07]} 
5.e4 {[%clk 01:30:06][%emt 00:05:37]} 5...d6 {[%clk 01:34:00][%emt 00:01:09]} 
6.c3 {[%clk 01:27:59][%emt 00:02:37]} 6...Nxe4 {[%clk 01:33:17][%emt 00:01:14]} 
7.Re1 {[%clk 01:26:26][%emt 00:02:02]} 7...f5 {[%clk 01:26:28][%emt 00:07:19]} 
8.d3 {[%clk 01:22:36][%emt 00:04:19]} 8...Nf6 {[%clk 01:26:11][%emt 00:00:48]} 
9.b4 {[%clk 01:22:15][%emt 00:00:50]} 9...cxb4 {[%clk 01:21:48][%emt 00:04:55]} 
10.cxb4 {[%clk 01:22:11][%emt 00:00:34]} 10...Qd7 {[%clk 01:15:59][%emt
00:06:19]} 11.b5 {[%clk 01:11:38][%emt 00:11:03]} 11...Nd8 {[%clk 01:16:13][%emt
00:00:16]} 12.Nc3 {[%clk 00:50:37][%emt 00:21:31]} 12...Be7 {[%clk
01:15:02][%emt 00:01:40]} 13.Qb3 {[%clk 00:49:56][%emt 00:01:12]} 13...Qe6 
{[%clk 01:11:26][%emt 00:04:05]} 14.Qa4 {[%clk 00:47:36][%emt 00:02:50]} 
14...O-O {[%clk 01:05:03][%emt 00:06:53]} 15.Ba3 {[%clk 00:44:29][%emt
00:03:38]} 15...Qd7 {[%clk 01:02:06][%emt 00:03:26]} 16.Nd2 {[%clk
00:41:24][%emt 00:03:35]} 16...Nf7 {[%clk 00:53:43][%emt 00:08:54]} 17.Nc4 
{[%clk 00:40:07][%emt 00:01:46]} 17...f4 {[%clk 00:52:02][%emt 00:02:11]} 18.d4 
{[%clk 00:36:33][%emt 00:04:05]} 18...f3 {[%clk 00:48:40][%emt 00:03:52]} 
19.dxe5 {[%clk 00:29:35][%emt 00:07:28]} 19...Ng5 {[%clk 00:37:29][%emt
00:11:40]} 20.e6 {[%clk 00:24:30][%emt 00:05:35]} 20...Qe8 {[%clk 00:32:18][%emt
00:05:41]} 21.Bf1 {[%clk 00:21:00][%emt 00:04:00]} 21...d5 {[%clk 00:28:51][%emt
00:03:57]} 22.Bxe7 {[%clk 00:17:39][%emt 00:03:52]} 22...Qxe7 {[%clk
00:29:15][%emt 00:00:05]} 23.Nb6 {[%clk 00:16:08][%emt 00:02:01]} 23...axb6 
{[%clk 00:29:16][%emt 00:00:30]} 24.Qxa8 {[%clk 00:16:35][%emt 00:00:02]} 
24...Bxe6 {[%clk 00:28:53][%emt 00:00:53]} 25.Qa4 {[%clk 00:16:57][%emt
00:00:08]} 25...Rc8 {[%clk 00:26:50][%emt 00:02:33]} 26.Rac1 {[%clk
00:15:14][%emt 00:02:13]} 26...Rc5 {[%clk 00:26:56][%emt 00:00:23]} 27.Qf4 
{[%clk 00:12:15][%emt 00:03:29]} 27...h6 {[%clk 00:26:14][%emt 00:01:13]} 28.h4 
{[%clk 00:11:53][%emt 00:00:52]} 28...Nge4 {[%clk 00:25:53][%emt 00:00:51]} 
29.Qxf3 {[%clk 00:10:49][%emt 00:01:35]} 29...Qc7 {[%clk 00:24:41][%emt
00:01:41]} 30.Nxe4 {[%clk 00:11:08][%emt 00:00:11]} 30...dxe4 {[%clk
00:25:06][%emt 00:00:06]} 31.Qe3 {[%clk 00:10:46][%emt 00:00:51]} 31...Bxa2 
{[%clk 00:25:18][%emt 00:00:19]} 32.Bg2 {[%clk 00:04:17][%emt 00:06:59]} 
32...Bd5 {[%clk 00:25:07][%emt 00:00:40]} 33.Red1 {[%clk 00:04:15][%emt
00:00:31]} 33...Kh8 {[%clk 00:24:21][%emt 00:01:18]} 34.Bf1 {[%clk
00:04:09][%emt 00:00:35]} 34...Be6 {[%clk 00:24:00][%emt 00:00:51]} 35.Be2 
{[%clk 00:03:40][%emt 00:01:00]} 35...Kg8 {[%clk 00:24:20][%emt 00:00:09]} 
36.Qd2 {[%clk 00:02:56][%emt 00:01:13]} 36...Bd5 {[%clk 00:23:39][%emt
00:01:12]} 37.Rxc5 {[%clk 00:01:19][%emt 00:02:07]} 37...bxc5 {[%clk
00:23:54][%emt 00:00:16]} 38.Qc3 {[%clk 00:01:44][%emt 00:00:05]} 38...Kh8 
{[%clk 00:23:18][%emt 00:01:05]} 39.Qe3 {[%clk 00:00:52][%emt 00:01:22]} 
39...Bf7 {[%clk 00:22:59] [%emt 00:00:48]} 40.Rd2 {[%clk 00:00:44][%emt
00:00:39]} 40...Kg8 {[%clk 00:21:33][%emt 00:01:55]} 41.Rd1 {[%clk
00:47:29][%emt 00:03:46]} 41...Kh8 {[%clk 00:22:59][%emt 00:00:48]} 42.Qf4 
{[%clk 00:43:59][%emt 00:04:01]} 42...Qxf4 {[%clk 01:00:36][%emt 00:07:50]} 
43.gxf4 {[%clk 00:41:19][%emt 00:03:10]} 43...Kh7 {[%clk 01:00:06][%emt
00:01:01]} 44.f5 {[%clk 00:35:54][%emt 00:05:54]} 44...Bd5 {[%clk 00:58:27][%emt
00:02:09]} 45.Rc1 {[%clk 00:34:12][%emt 00:02:12]} 45...b6 {[%clk 00:58:03][%emt
00:00:55]} 46.Ra1 {[%clk 00:34:19][%emt 00:00:22]} 46...Bb3 {[%clk
00:56:50][%emt 00:01:43]} 47.Ra6 {[%clk 00:33:06][%emt 00:01:43]} 47...Nd5 
{[%clk 00:56:51][%emt 00:00:29]} 48.Bh5 {[%clk 00:33:28][%emt 00:00:08]} 
48...g5 {[%clk 00:56:35][%emt 00:00:46]} 49.fxg6+ {[%clk 00:33:48][%emt
00:00:10]} 49...Kg7 {[%clk 00:57:01][%emt 00:00:04]} 50.Ra7+ {[%clk
00:34:10][%emt 00:00:08]} 50...Kg8 {[%clk 00:57:27][%emt 00:00:04]} 51.Bg4 
{[%clk 00:32:17][%emt 00:02:23]} 51...Nf4 {[%clk 00:57:50][%emt 00:00:07]} 
52.Rb7 {[%clk 00:31:03][%emt 00:01:44]} 52...h5 {[%clk 00:57:03][%emt 00:01:18]} 
53.Bf5 {[%clk 00:31:12][%emt 00:00:20]} 53...Bd5 {[%clk 00:54:30][%emt
00:03:03]} 54.Rxb6 {[%clk 00:30:41][%emt 00:01:01]} 54...c4 {[%clk
00:54:54][%emt 00:00:06]} 55.Rc6 {[%clk 00:24:15][%emt 00:06:55]} 55...c3 
{[%clk 00:53:20][%emt 00:02:05]} 56.Rc5 {[%clk 00:24:02][%emt 00:00:42]} 
56...Kg7 {[%clk 00:53:04][%emt 00:00:47]} 57.Kh2 {[%clk 00:23:41][%emt
00:00:50]} 57...Kf6 {[%clk 00:53:26][%emt 00:00:09]} 58.b6 {[%clk 00:23:42][%emt
00:00:30]} 58...Bb7 {[%clk 00:51:57][%emt 00:01:59]} 59.g7 {[%clk 00:23:03][%emt
00:01:07]} 59...Kxg7 {[%clk 00:51:14] [%emt 00:01:14]} 60.Rc7+ {[%clk 00:23:24]
[%emt 00:00:09]} 60...Kf6 {[%clk 00:51:28] [%emt 00:00:16]} 61.Rxb7 {[%clk
00:23:50] [%emt 00:00:05]} 61...Kxf5 {[%clk 00:51:44] [%emt 00:00:13]} 62.Rc7 
{[%clk 00:24:06] [%emt 00:00:14]} 62...Nd5 {[%clk 00:52:08] [%emt 00:00:06]} 
63.Rc5 {[%clk 00:23:54] [%emt 00:00:42]} 1-0